bitfinex-derivatives/quotes_ETHF0:USTF0_20250824
["timestamp","ask_amount","ask_price","bid_price","bid_amount"]
[1756052491899,0.098,4827.4,4827.0,0.99583]
[1756052492104,19.7695,4827.7,4827.2,0.41441]
[1756052492408,19.7695,4827.7,4825.9,1.05702]
[1756052492409,0.96859,4827.5,4827.4,0.2326]
[1756052492709,0.5542,4827.5,4827.4,0.8017]
[1756052493205,19.541,4827.5,4827.2,0.41442]
[1756052493408,0.96857,4827.8,4827.2,0.41442]
[1756052493605,20.0952,4827.7,4827.2,0.41442]
[1756052493910,0.3185,4827.4,4827.2,0.8017]
[1756052494206,0.098,4827.3,4827.2,0.8017]
[1756052494411,0.2205,4827.2,4826.8,0.41445]
[1756052494610,0.2357,4827.6,4827.1,0.41443]
[1756052494814,0.3185,4827.5,4827.4,0.4529]
[1756052495004,0.3185,4827.5,4827.4,0.8017]
[1756052495201,1.03565,4829.1,4827.6,0.5691]
[1756052495499,0.5542,4828.0,4827.5,0.2326]
[1756052495801,0.5542,4828.1,4827.8,1.21606]
[1756052495998,0.5542,4828.1,4828.0,0.5691]
[1756052496209,0.2205,4831.0,4829.0,0.2533]
[1756052496514,0.2205,4831.0,4828.0,21.61633]
[1756052496515,0.5703,4831.1,4830.5,0.5814]
[1756052496716,0.5899,4831.6,4831.3,0.5515]
[1756052497007,0.2357,4831.6,4831.3,0.5618]
[1756052497309,0.64974,4831.6,4831.0,0.7943]
[1756052497501,0.8066,4831.2,4831.0,0.5618]
[1756052497708,0.2319,4831.1,4831.0,0.5618]
[1756052497910,0.4141,4830.9,4829.4,0.16889899]
[1756052498208,0.5747,4830.6,4829.9,0.2325]
[1756052498511,0.4142,4829.8,4829.5,0.2306]
[1756052498704,0.8066,4829.5,4829.0,0.2306]
[1756052498907,0.5747,4829.0,4828.8,0.5618]
[1756052499209,0.5747,4829.8,4828.5,0.5618]
[1756052499400,0.5747,4828.7,4828.0,0.2306]
[1756052499714,1.2209,4828.7,4828.0,0.97614]
[1756052500013,0.8066,4828.3,4828.1,0.3312]
[1756052500201,0.2319,4828.3,4828.2,0.2306]
[1756052500402,0.8066,4828.8,4828.3,0.41432]
[1756052500607,0.41425,4829.3,4828.7,0.97609]
[1756052500912,0.41426,4829.1,4829.0,0.5618]
[1756052501211,0.64616,4829.1,4829.0,0.5618]
[1756052502211,0.2319,4829.1,4829.0,0.5618]
[1756052502513,0.2319,4829.8,4829.5,0.5637]
[1756052502709,0.2319,4829.8,4828.4,1.03578]
[1756052502710,0.4524,4830.4,4829.8,0.41419]
[1756052503014,0.4524,4830.4,4830.0,0.41417]
[1756052503214,0.41411,4830.8,4830.2,0.3312]
[1756052503514,0.41412,4830.7,4830.2,0.7943]
[1756052503705,0.64602,4830.7,4830.3,0.4631]
[1756052503908,0.4524,4830.7,4830.5,0.7943]
[1756052504113,0.3542,4831.0,4830.6,0.7943]
[1756052504406,0.86643,4831.8,4831.1,0.41408]
[1756052504603,0.86643,4831.8,4830.4,1.03535]
[1756052504604,0.4524,4831.8,4831.7,0.5618]
[1756052505114,0.414,4832.1,4831.7,0.7943]
[1756052505312,0.6459,4832.1,4831.3,0.41406]
[1756052505605,29.842,4833.0,4831.5,0.5618]
[1756052505606,0.41402,4831.8,4831.5,0.5618]
[1756052505811,0.2319,4831.5,4831.4,0.3312]
[1756052506011,0.2319,4832.0,4831.3,0.4631]
[1756052506217,0.8066,4831.6,4831.5,0.5618]
[1756052506417,1.22065,4831.6,4831.0,0.7943]
[1756052506712,0.5747,4831.6,4830.6,0.41412]
[1756052506911,0.41407,4831.3,4830.7,0.2306]
[1756052507105,0.41408,4831.1,4830.7,0.2306]
[1756052507303,20.92001,4832.1,4830.7,0.5618]
[1756052507304,0.8066,4830.8,4830.7,0.5618]
[1756052507702,0.8066,4830.8,4830.7,0.2306]
[1756052507907,0.64601,4830.9,4830.4,0.5637]
[1756052508110,0.64601,4830.9,4830.7,0.5618]
[1756052508413,0.8066,4830.8,4830.7,0.3312]
[1756052508617,0.8066,4830.8,4830.7,0.5618]
[1756052508812,0.41408,4831.1,4830.5,0.41413]
[1756052509121,0.5747,4831.4,4831.1,0.7943]
[1756052509309,0.2205,4831.4,4831.2,0.2325]
[1756052509511,0.4524,4831.4,4831.3,0.5618]
[1756052510709,0.3542,4832.1,4829.6,0.0207]
[1756052510915,0.41407,4831.3,4830.8,0.3312]
[1756052511115,0.64598,4831.2,4830.9,0.7943]
[1756052511311,0.2319,4831.1,4831.0,0.3312]
[1756052511510,0.2319,4831.1,4831.0,0.5618]
[1756052511910,0.8066,4831.1,4831.0,0.5618]
[1756052512218,1.22069,4831.1,4830.7,0.41411]
[1756052512419,0.2319,4831.2,4831.0,0.7943]
[1756052512610,0.8066,4831.2,4831.1,0.5618]
[1756052513011,0.8066,4831.2,4831.1,0.3312]
[1756052513314,0.41407,4831.3,4831.2,0.7943]
[1756052513506,1.035,4832.2,4824.4,4.868141]
[1756052513507,0.41406,4831.4,4830.9,0.4141]
[1756052513712,0.41406,4831.4,4828.5,2.07151]
[1756052513713,0.4141,4830.9,4830.7,0.2306]
[1756052513913,0.8066,4830.8,4830.7,0.2306]
[1756052514114,0.8066,4830.8,4830.7,0.82613916]
[1756052514510,0.8066,4830.8,4830.7,0.5618]
[1756052514719,0.5747,4830.6,4830.3,0.41415]
[1756052515015,0.5747,4830.6,4829.1,1.03563]
[1756052515016,0.8066,4830.5,4830.4,0.3312]
[1756052515221,0.8066,4830.5,4830.4,0.59594601]
[1756052515421,0.8066,4830.5,4830.4,0.5959384]
[1756052515622,0.8066,4830.5,4830.4,0.8265384]
[1756052515817,0.8066,4830.5,4830.4,0.2647384]
[1756052516024,0.8066,4830.5,4829.9,0.7943]
[1756052516025,0.5747,4830.3,4830.0,0.74537]
[1756052516323,0.41414,4830.5,4830.2,0.2306]
[1756052516617,0.4524,4830.4,4830.3,1.01024663]
[1756052516816,0.4524,4830.4,4830.3,0.59609663]
[1756052517018,0.8066,4830.4,4830.3,0.3312]
[1756052517321,0.8066,4830.4,4830.3,0.26503219]
[1756052517523,0.98881,4830.8,4830.4,0.41414]
[1756052517714,0.2319,4830.8,4830.7,0.7943]
[1756052517918,0.4141,4831.0,4830.6,0.41412]
[1756052518115,0.41412,4830.7,4830.4,0.41414]
[1756052518320,0.64602,4830.7,4830.6,0.5618]
[1756052518520,0.86652,4830.7,4830.6,0.5618]
[1756052518720,0.2319,4830.7,4830.6,0.5618]
[1756052518913,0.41409,4831.1,4830.7,0.41412]
[1756052519425,0.2319,4831.0,4830.9,0.7943]
[1756052519622,0.5747,4831.0,4830.3,0.7943]
[1756052519819,0.4141,4831.0,4830.5,0.41413]
[1756052520023,19.788,4832.0,4829.4,1.05626]
[1756052520024,0.2319,4830.7,4830.6,0.26516818]
[1756052520230,0.41427,4829.0,4828.3,0.41432]
[1756052520424,0.46014468,4830.7,4827.2,1.03604]
[1756052520425,0.8066,4828.7,4828.6,0.7455]
[1756052520628,0.5861,4829.3,4828.7,0.3312]
[1756052520932,0.2319,4829.4,4827.9,1.83019]
[1756052521230,1.22088,4828.9,4828.1,0.97614]
[1756052521427,0.5747,4828.9,4828.1,0.97614]
[1756052521732,0.2319,4828.8,4828.1,0.5618]
[1756052522027,21.74414,4830.1,4827.7,0.5637]
[1756052522028,0.8066,4828.6,4827.7,0.5637]
[1756052522335,0.8066,4828.6,4827.8,0.2306]
[1756052522626,0.2319,4828.6,4828.4,0.7943]
[1756052522928,0.2205,4828.5,4828.0,0.5618]
[1756052523125,19.813,4829.6,4828.0,0.3312]
[1756052523322,1.0357,4828.9,4827.6,0.2306]
[1756052523527,0.3542,4828.6,4827.6,0.2306]
[1756052523727,0.45901617,4828.5,4827.5,0.3312]
[1756052523926,0.41437,4827.8,4827.5,0.3312]
[1756052524122,0.5861,4827.6,4827.5,0.3312]
[1756052524328,0.8066,4827.3,4827.1,0.2306]
[1756052524525,0.8066,4827.2,4827.1,0.2306]
[1756052524729,0.2319,4827.2,4827.1,0.5618]
[1756052524923,0.2319,4827.2,4827.1,0.7943]
[1756052525528,0.8066,4827.2,4827.1,0.7943]
[1756052525730,0.2319,4827.2,4827.1,0.7943]
[1756052526134,0.8066,4827.7,4827.2,0.41442]
[1756052526329,0.76855,4828.1,4827.3,0.4144]
[1756052526536,0.41436,4827.9,4827.6,0.7943]
[1756052526734,0.63486,4827.9,4827.7,0.7943]
[1756052526935,0.7816,4827.8,4827.7,0.7943]
[1756052527130,4.846219,4832.4,4827.7,0.7943]
[1756052527131,21.74405,4830.2,4827.7,0.5618]
[1756052527336,0.41431,4828.4,4827.8,0.41436]
[1756052527634,0.3385,4827.7,4827.0,0.95233]
[1756052527840,0.4144,4827.5,4827.0,0.5379]
[1756052528134,0.3385,4827.3,4827.0,0.5379]
[1756052528335,0.227,4827.2,4827.1,0.5379]
[1756052528637,0.2161,4828.1,4826.4,0.2141]
[1756052528830,0.227,4827.3,4826.2,0.3238]
[1756052529036,0.41448,4826.5,4826.0,0.2141]
[1756052529233,0.41449,4826.4,4825.8,0.96764]
[1756052529438,0.7816,4826.5,4826.2,0.4145]
[1756052529632,0.7816,4826.5,4826.3,0.41449]
[1756052529835,0.41443,4827.2,4826.5,0.41448]
[1756052530035,0.227,4826.8,4826.7,0.5379]
[1756052530229,0.7816,4827.4,4826.7,0.7672]
[1756052530430,1.19601,4827.4,4826.9,0.41444]
[1756052530740,0.5655,4827.2,4827.1,0.5379]
[1756052530940,0.7816,4827.2,4827.1,0.5379]
[1756052531436,0.7816,4827.2,4827.1,0.95233]
[1756052531628,0.4431,4827.6,4827.5,0.5379]
[1756052532029,0.7816,4827.9,4827.6,0.7672]
[1756052532235,0.227,4828.4,4828.1,0.7672]
[1756052532435,0.227,4828.3,4828.2,0.5379]
[1756052532639,0.227,4828.3,4828.2,0.7672]
[1756052533738,0.7816,4828.3,4828.2,0.5379]
[1756052536542,0.5655,4828.7,4828.2,0.7672]
[1756052536843,0.5546,4828.6,4828.5,0.5379]
[1756052537040,0.9689,4828.6,4828.5,0.5379]
[1756052537245,0.5546,4828.6,4828.5,0.5379]
[1756052537436,0.7816,4828.6,4828.5,0.5379]
[1756052537838,0.41432,4828.4,4828.2,0.5379]
[1756052538139,0.7816,4828.3,4828.2,0.5379]
[1756052538342,0.4143,4828.6,4828.2,0.7672]
[1756052538537,0.227,4828.6,4828.4,0.5379]
[1756052538740,0.5546,4828.8,4828.5,0.7672]
[1756052539037,0.2161,4829.2,4829.1,0.5531]
[1756052539238,19.751,4829.4,4829.2,0.41424]
[1756052539438,0.227,4829.3,4829.2,1.18144]
[1756052539739,0.227,4829.7,4829.4,0.41423]
[1756052539943,1.19582,4829.6,4829.5,0.5379]
[1756052540744,0.7816,4829.6,4829.5,0.5379]
[1756052540938,0.7816,4829.6,4829.5,0.7672]
[1756052541332,0.7816,4829.6,4829.0,0.64356]
[1756052541538,0.41424,4829.3,4828.9,0.95217]
[1756052541733,0.7816,4829.1,4829.0,0.95216]
[1756052542136,0.5655,4829.1,4829.0,1.18146]
[1756052542334,0.41423,4829.4,4829.1,0.5379]
[1756052542540,0.7816,4829.2,4829.1,0.95215]
[1756052542841,0.7816,4829.2,4829.1,0.5379]
[1756052543040,0.7816,4829.1,4829.0,0.73805]
[1756052543341,0.227,4829.1,4829.0,1.18145]
[1756052543644,0.4431,4829.1,4829.0,1.18145]
[1756052544345,0.7816,4829.1,4829.0,1.18145]
[1756052544544,0.41427,4828.9,4828.8,0.5379]
[1756052544741,19.711,4829.4,4829.3,0.41423]
[1756052545042,0.3385,4830.1,4829.6,0.41421]
[1756052545246,0.85728,4830.0,4829.7,0.4142]
[1756052545447,1.19578,4830.0,4829.9,0.7672]
[1756052545845,0.41421,4829.7,4829.5,0.41421]
[1756052546047,0.7816,4830.2,4829.5,0.2141]
[1756052546344,0.7816,4829.1,4829.0,0.41426]
[1756052547636,0.7816,4829.1,4829.0,0.73806]
[1756052547841,0.7816,4829.1,4829.0,1.18146]
[1756052548845,0.7816,4829.1,4829.0,0.7672]
[1756052549044,0.41429,4828.7,4828.5,0.4143]
[1756052549250,0.7816,4828.6,4828.5,0.9522]
[1756052549551,0.4431,4828.6,4828.5,1.1815]
[1756052549750,0.4431,4828.6,4828.5,0.7672]
[1756052549943,0.4431,4828.6,4828.5,0.5379]
[1756052550144,0.96891,4828.5,4828.4,0.5379]
[1756052550550,1.0356,4829.3,4827.9,0.41435]
[1756052550551,0.41434,4828.2,4827.9,0.41435]
[1756052550744,0.7816,4828.0,4827.9,0.95225]
[1756052551051,0.5546,4827.9,4827.7,1.18157]
[1756052551351,0.5546,4827.7,4827.5,0.41439]
[1756052551547,0.7816,4827.6,4827.5,0.95229]
[1756052551739,1.19598,4827.6,4827.5,0.5379]
[1756052552449,1.19598,4827.6,4827.4,0.41439]
[1756052552450,0.7816,4827.2,4826.7,0.3238]
[1756052552653,0.227,4827.1,4827.0,1.18163]
[1756052553050,0.5546,4827.5,4827.4,0.4144]
[1756052553250,0.5546,4827.5,4827.1,0.7672]
[1756052553251,0.5546,4828.6,4827.3,1.03603]
[1756052553450,0.41431,4828.5,4828.4,0.7672]
[1756052553650,0.7816,4828.5,4828.4,0.7672]
[1756052553947,0.7816,4828.9,4828.7,0.64358]
[1756052554144,0.7816,4828.9,4828.8,0.5379]
[1756052554357,0.7816,4828.9,4828.8,0.7672]
[1756052554953,0.7816,4828.9,4828.1,1.03584]
[1756052554954,0.227,4829.2,4828.9,0.41427]
[1756052555155,0.227,4829.2,4829.1,0.7672]
[1756052555346,0.7816,4829.2,4829.1,0.7672]
[1756052556157,0.227,4829.2,4829.1,0.7672]
[1756052556358,0.7816,4829.2,4829.1,0.7672]
[1756052557159,0.7816,4829.2,4829.1,0.5379]
[1756052558151,0.7816,4829.2,4828.9,0.41427]
[1756052558356,0.2286,4828.9,4828.8,0.8102]
[1756052558758,0.3813,4828.9,4828.8,1.3471]
[1756052558951,1.1023,4828.9,4828.8,1.3471]
[1756052559147,1.3289,4828.9,4828.8,1.3471]
[1756052559348,1.3289,4828.9,4828.8,1.1158]
[1756052559556,0.307,4828.9,4828.8,1.3471]
[1756052560156,0.5356,4828.9,4828.8,1.3471]
[1756052560761,0.5356,4829.3,4829.2,1.3471]
[1756052560954,19.8207,4829.3,4829.2,1.3471]
[1756052561453,0.5336,4829.7,4829.6,1.53001]
[1756052561659,19.963,4829.7,4829.6,1.76131]
[1756052562155,1.36218,4830.0,4829.9,0.3117]
[1756052562460,20.602,4830.0,4829.9,1.3471]
[1756052562662,1.1023,4830.0,4829.9,1.3471]
[1756052562853,20.9799,4830.0,4829.9,1.1158]
[1756052564854,0.7622,4830.0,4829.9,1.3471]
[1756052565060,20.3932,4830.0,4829.9,1.3471]
[1756052565458,0.7622,4830.0,4829.9,1.3471]
[1756052565756,20.26115,4830.4,4830.2,1.76126]
[1756052566059,19.629,4830.4,4830.3,1.3471]
[1756052566260,20.0083,4830.5,4830.4,1.52994]
[1756052566452,20.6072,4830.5,4830.4,1.1158]
[1756052566652,20.9559,4830.5,4830.4,1.1158]
[1756052567056,1.3289,4830.5,4830.4,0.8795]
[1756052567253,20.9479,4830.5,4830.4,0.8795]
[1756052567454,20.9479,4830.5,4830.4,0.5369]
[1756052568255,20.9429,4830.5,4830.4,1.1158]
[1756052568672,20.3712,4830.5,4830.4,1.3471]
[1756052569049,0.7622,4830.5,4830.4,1.3471]
[1756052569249,1.3289,4830.5,4830.4,1.3471]
[1756052570356,20.9249,4830.5,4830.4,1.3471]
[1756052570759,20.9249,4830.5,4830.4,1.1158]
[1756052572559,1.3289,4830.5,4830.4,1.1158]
[1756052572862,1.3289,4830.5,4830.4,1.3471]
[1756052573763,1.3289,4830.5,4830.4,1.1158]
[1756052574550,19.575,4830.6,4830.0,0.88177]
[1756052574751,1.3289,4830.1,4830.0,0.95107]
[1756052575257,1.3289,4830.1,4830.0,1.52997]
[1756052575458,1.3289,4830.1,4830.0,1.76127]
[1756052576464,1.3289,4830.1,4830.0,1.52997]
[1756052576764,1.3289,4830.1,4830.0,0.95107]
[1756052576964,1.3289,4830.1,4830.0,0.63937]
[1756052577262,0.4466,4830.0,4829.8,0.41419]
[1756052577461,1.3289,4829.9,4829.8,1.76129]
[1756052577957,1.3289,4829.9,4829.8,1.52999]
[1756052578559,1.3289,4829.9,4829.8,0.5369]
[1756052579461,19.95118,4830.0,4829.5,0.2313]
[1756052579462,1.3289,4829.6,4829.5,0.5369]
[1756052579667,1.3289,4829.5,4829.4,0.8795]
[1756052579868,1.3289,4829.5,4829.4,1.53003]
[1756052580159,1.3289,4829.5,4829.4,0.8795]
[1756052580367,1.3289,4829.1,4829.0,0.8795]
[1756052580559,20.8519,4829.1,4829.0,0.8795]
[1756052580755,0.5667,4828.9,4828.8,0.41428]
[1756052581064,1.3289,4828.9,4828.8,1.53008]
[1756052581465,1.3289,4828.9,4828.8,0.2252]
[1756052581653,1.3289,4828.9,4828.6,0.41429]
[1756052581654,0.94788,4828.9,4828.6,0.41429]
[1756052581858,1.3289,4828.7,4828.6,0.41429]
[1756052582055,20.8469,4828.7,4828.6,0.41429]
[1756052582259,20.8469,4828.7,4828.6,0.63949]
[1756052582458,0.4143,4828.6,4828.4,0.41431]
[1756052582666,1.3289,4828.5,4828.4,0.79771]
[1756052583273,1.3289,4828.5,4828.2,0.41433]
[1756052583274,1.1109,4828.3,4828.2,0.41433]
[1756052583466,1.3289,4828.3,4828.2,1.53013]
[1756052583673,1.3289,4828.3,4828.2,1.76143]
[1756052585071,1.3289,4828.3,4827.8,0.16463333]
[1756052585072,1.3289,4828.1,4827.8,1.83283242]
[1756052585261,1.74326,4827.9,4827.7,2.06832167]
[1756052585461,20.8279,4827.8,4827.7,0.16371925]
[1756052585861,0.1543,4827.4,4827.3,0.4144]
[1756052586067,0.5336,4827.4,4827.3,0.6396]
[1756052586263,1.3289,4827.4,4827.3,0.7978]
[1756052586771,1.3289,4827.4,4826.8,0.41445]
[1756052586772,0.5336,4827.1,4826.8,0.41445]
[1756052586971,1.3202,4826.9,4826.8,0.41445]
[1756052587467,0.7454,4826.5,4826.4,0.93578]
[1756052587668,1.3202,4826.5,4826.4,1.50708]
[1756052588763,1.3202,4826.5,4826.4,1.0926]
[1756052589464,0.1457,4827.6,4827.5,1.50699]
[1756052589765,0.7454,4827.9,4827.8,1.3182]
[1756052590170,1.3202,4828.3,4828.2,1.50693]
[1756052590370,1.3202,4828.3,4828.2,1.73253]
[1756052590767,1.3202,4828.3,4827.7,0.5713]
[1756052591060,0.1457,4827.8,4827.7,0.93567]
[1756052591566,0.3645,4827.8,4827.7,1.50697]
[1756052591772,1.1063,4828.1,4828.0,1.73255]
[1756052591971,1.3202,4828.1,4828.0,1.27975]
[1756052592269,1.3202,4828.1,4828.0,0.5213]
[1756052592570,1.3202,4828.0,4827.9,0.63875]
[1756052592769,1.3202,4828.0,4827.9,1.27975]
[1756052593065,1.3202,4828.0,4827.9,1.50695]
[1756052593472,1.3202,4828.0,4827.9,0.41435]
[1756052593863,0.5929,4827.5,4827.1,0.3441]
[1756052594070,0.5085,4826.9,4826.8,0.41445]
[1756052594263,1.3202,4826.9,4826.8,1.50705]
[1756052595461,1.3202,4826.9,4826.8,1.73265]
[1756052596066,1.3202,4826.9,4826.8,1.50705]
[1756052597182,1.3202,4826.9,4826.8,1.73265]
[1756052597570,0.2369,4827.5,4827.4,0.4144]
[1756052597770,0.1457,4827.5,4827.4,1.7326]
[1756052598370,0.3645,4827.8,4827.7,0.93567]
[1756052598686,0.3645,4827.8,4827.7,1.73257]
[1756052600977,0.9642,4827.8,4827.7,1.73257]
[1756052601279,1.3202,4827.8,4827.7,1.73257]
[1756052601486,1.3202,4827.8,4827.7,1.0926]
[1756052602285,1.3202,4827.8,4827.7,0.2244]
[1756052603680,1.3202,4827.8,4827.7,0.8654]
[1756052603881,1.3202,4827.8,4827.7,1.0926]
[1756052604284,1.3202,4827.8,4827.4,0.4144]
[1756052604479,1.3202,4827.5,4827.4,0.7918]
[1756052604679,1.3202,4827.5,4827.4,1.507]
[1756052605075,1.3202,4827.5,4827.4,1.7326]
[1756052605481,0.2369,4828.6,4827.7,0.5697]
[1756052605682,0.1457,4828.4,4828.3,0.93561]
[1756052605879,0.5134,4828.4,4828.3,1.73251]
[1756052606284,0.5134,4828.7,4828.6,1.50809]
[1756052606485,0.5134,4828.7,4828.6,1.73249]
[1756052607088,0.7386,4829.0,4828.9,0.93557]
[1756052607293,1.1713,4829.0,4828.9,1.73247]
[1756052607786,0.5784,4829.0,4828.9,1.73247]
[1756052608177,0.3645,4829.0,4828.9,1.73247]
[1756052608378,0.3645,4829.0,4828.3,1.03581]
[1756052608379,19.5977,4829.2,4829.1,1.73245]
[1756052609285,20.1793,4829.2,4829.1,1.73245]
[1756052609482,20.7722,4829.2,4829.1,1.3182]
[1756052610386,20.7722,4829.2,4829.1,1.0926]
[1756052611190,20.7722,4829.2,4829.1,0.5213]
[1756052614188,20.7432,4829.2,4829.1,1.0926]
[1756052614891,20.7432,4829.2,4829.1,0.5213]
[1756052615094,0.5085,4828.9,4828.8,0.93557]
[1756052615295,20.7312,4828.9,4828.8,0.5213]
[1756052615494,0.2139,4828.3,4828.2,0.5685]
[1756052615787,0.9642,4828.0,4827.9,0.6911124]
[1756052615989,1.3202,4828.0,4827.9,1.0926]
[1756052616392,1.3202,4828.0,4827.9,1.73255]
[1756052617289,1.3202,4828.0,4827.9,0.93565]
[1756052617493,1.307,4827.8,4827.7,0.41437]
[1756052617997,20.713,4827.8,4827.7,0.41437]
[1756052618389,20.712,4827.8,4827.7,1.48857]
[1756052618590,20.712,4827.8,4827.7,0.93297]
[1756052618891,1.307,4827.8,4827.7,1.48857]
[1756052619096,20.712,4827.8,4827.7,1.48857]
[1756052619289,20.712,4827.8,4827.7,0.93297]
[1756052619494,20.712,4827.8,4827.7,0.5186]
[1756052619495,21.12637,4827.8,4827.7,0.5186]
[1756052619688,0.5283,4827.6,4827.5,0.16982269]
[1756052619892,1.307,4827.6,4827.5,0.8591]
[1756052620194,1.307,4827.6,4827.5,0.5186]
[1756052621091,20.713,4827.6,4827.5,0.5186]
[1756052621497,1.307,4827.6,4827.5,0.5186]
[1756052622086,1.307,4827.6,4827.5,0.3701]
[1756052622291,1.307,4827.5,4827.4,1.4932]
[1756052622498,0.9689,4827.5,4827.4,1.4932]
[1756052622698,0.9689,4827.5,4827.4,1.7083]
[1756052623693,1.307,4827.5,4827.4,1.7083]
[1756052627596,1.307,4827.5,4827.4,1.4886]
[1756052627900,1.72139,4827.5,4827.4,1.4886]
[1756052628092,1.307,4827.4,4827.3,0.41441]
[1756052632493,1.307,4827.4,4827.3,1.48861]
[1756052632693,1.307,4827.4,4827.3,1.70831]
[1756052634301,1.307,4827.4,4827.3,1.48861]
[1756052637304,1.307,4827.4,4827.3,1.27351]
[1756052637699,1.307,4827.4,4827.3,0.41441]
[1756052638099,1.307,4827.4,4827.3,1.27351]
[1756052638302,1.307,4827.4,4827.3,0.63071]
[1756052638605,1.307,4827.4,4827.3,1.48861]
[1756052638805,1.307,4827.4,4827.3,1.70831]
[1756052640404,19.404,4827.9,4827.8,0.5186]
[1756052640700,0.22,4828.1,4827.8,1.70827]
[1756052640901,0.1536,4828.1,4828.0,1.70825]
[1756052641704,1.307,4828.1,4828.0,0.8591]
[1756052641909,1.307,4828.1,4827.2,0.0207]
[1756052641910,0.9323,4827.7,4827.6,0.41438]
[1756052642098,20.71,4827.7,4827.6,0.41438]
[1756052642508,20.71,4827.7,4827.4,0.4144]
[1756052642710,1.307,4827.6,4827.5,0.41439]
[1756052642910,1.307,4827.5,4827.4,0.41439]
[1756052643309,1.307,4827.5,4827.4,0.77799]
[1756052643503,1.307,4827.5,4827.4,0.63069]
[1756052643716,1.307,4827.5,4827.4,0.41439]
[1756052643909,1.307,4827.5,4827.4,0.63069]
[1756052644504,1.307,4827.5,4827.4,1.70829]
[1756052645606,1.307,4827.5,4827.4,1.48859]
[1756052645807,1.307,4827.5,4827.4,0.41439]
[1756052646307,1.307,4827.5,4827.0,2.40955896]
[1756052646508,0.5283,4826.8,4826.7,0.41446]
[1756052646708,20.709,4826.8,4826.7,0.41446]
[1756052646910,0.5398,4826.4,4826.3,1.85395896]
[1756052647101,1.3209,4826.4,4826.3,0.41449]
[1756052648113,1.3209,4826.4,4826.3,1.50949]
[1756052648515,1.3209,4826.4,4826.3,2.41925119]
[1756052649310,1.3209,4826.4,4826.3,3.21985119]
[1756052649510,0.3022,4826.4,4826.3,1.73399]
[1756052649714,0.3022,4826.7,4826.6,1.73397]
[1756052649903,0.2197,4827.0,4826.9,1.16904]
[1756052650107,0.7595,4827.0,4826.9,1.73394]
[1756052650308,1.3209,4827.0,4826.9,1.73394]
[1756052650706,0.3022,4827.0,4826.9,1.73394]
[1756052650908,0.1553,4827.0,4826.9,1.73394]
[1756052651108,19.4,4827.3,4827.2,0.41442]
[1756052651307,19.7032,4827.3,4827.2,1.73392]
[1756052651513,20.7219,4827.3,4827.2,1.73392]
[1756052651708,0.41443,4827.1,4826.8,1.21505]
[1756052651916,1.3209,4826.6,4826.5,0.41447]
[1756052652115,1.3209,4826.6,4826.5,0.93337]
[1756052652417,1.3209,4826.6,4826.5,1.50947]
[1756052653416,0.5398,4826.6,4826.3,0.41449]
[1756052653616,1.3209,4826.5,4826.4,0.41448]
[1756052655013,1.73538,4826.5,4826.2,1.48531221]
[1756052655217,0.5398,4826.0,4825.7,1.48531221]
[1756052655405,0.5398,4825.8,4825.7,0.41455]
[1756052655609,1.3209,4825.8,4825.7,0.41455]
[1756052655810,1.3209,4825.8,4825.7,0.63045]
[1756052656003,1.3209,4825.8,4825.7,0.2159]
[1756052656416,1.3209,4825.8,4825.5,2.06141221]
[1756052656417,0.5398,4825.6,4825.5,1.48531221]
[1756052656619,1.3209,4825.4,4825.3,2.58031221]
[1756052656818,1.3209,4825.4,4825.3,1.3195]
[1756052657114,1.3209,4825.4,4825.3,0.3787]
[1756052657419,1.3209,4825.1,4825.0,1.50961]
[1756052658728,1.3209,4825.1,4825.0,1.28251]
[1756052659011,19.81358,4825.4,4824.8,0.93352]
[1756052659012,1.3209,4824.9,4824.8,0.93352]
[1756052659417,1.3209,4824.9,4824.8,1.50962]
[1756052660218,0.3322,4824.8,4824.5,1.48531221]
[1756052660519,1.73557,4824.2,4824.1,0.09535359]
[1756052660713,0.41475,4823.4,4823.1,0.349]
[1756052660919,1.3209,4823.1,4823.0,0.41477]
[1756052661518,1.3209,4823.1,4823.0,0.93367]
[1756052661725,1.3209,4823.1,4823.0,1.50717]
[1756052662113,0.7595,4823.1,4822.7,0.6393]
[1756052662318,0.5398,4822.7,4822.6,0.5189]
[1756052662520,1.3209,4822.7,4822.6,0.8679]
[1756052662821,1.3209,4822.7,4822.6,1.3195]
[1756052663416,1.3209,4822.7,4822.6,0.1542]
[1756052663616,1.3209,4822.7,4822.4,0.41482]
[1756052663813,0.9364,4822.6,4822.1,0.2271]
[1756052664019,0.41479,4822.9,4822.4,0.41482]
[1756052664228,1.3209,4822.5,4822.4,0.78492]
[1756052664422,1.3209,4822.5,4822.4,0.41482]
[1756052664628,1.3209,4822.5,4822.4,1.50722]
[1756052664830,1.3209,4822.5,4822.4,1.73432]
[1756052666623,0.769,4822.5,4822.4,1.73432]
[1756052666819,1.3209,4823.0,4822.7,0.4148]
[1756052667025,0.5398,4823.0,4822.8,0.41479]
[1756052667224,1.3209,4822.9,4822.8,1.73429]
[1756052667420,0.7811,4823.4,4822.8,0.8006]
[1756052667626,0.41474,4823.5,4822.8,0.8006]
[1756052667627,0.3845,4823.0,4822.9,0.77948]
[1756052667825,1.3209,4823.0,4822.9,0.3647]
[1756052668026,0.5398,4822.4,4822.3,0.5735]